fUSD/lending_fUSD_20260515
["ID","MTS","AMOUNT","RATE_DAILY","PERIOD"]
[422320695,1778819456000,-288.0,0.00030137,2]
[422320714,1778819456000,-365.0,0.00030575,30]
[422320704,1778819456000,-300.0,0.000302,10]
[422320706,1778819456000,-173.73,0.00030411,120]
[422320715,1778819456000,-158.0,0.00030575,30]
[422320703,1778819456000,-1833.39,0.000302,7]
[422320681,1778819456000,-1178.687896,0.0003013,7]
[422320701,1778819456000,-2986.64290195,0.00030137,30]
[422320678,1778819456000,-270.241083,0.0003013,7]
[422320650,1778819456000,-151.0,0.0003013,7]
[422320674,1778819456000,-282.491738,0.0003013,7]
[422320707,1778819456000,-152.0,0.00030417,9]
[422320652,1778819456000,-261.983114,0.0003013,7]
[422320651,1778819456000,-524.970701,0.0003013,7]
[422320654,1778819456000,-524.970701,0.0003013,7]
[422320664,1778819456000,-223.723344,0.0003013,7]
[422320653,1778819456000,-524.970701,0.0003013,7]
[422320655,1778819456000,-151.0,0.0003013,7]
[422320656,1778819456000,-151.0,0.0003013,7]
[422320657,1778819456000,-464.959914,0.0003013,7]
[422320660,1778819456000,-464.959914,0.0003013,7]
[422320661,1778819456000,-223.723344,0.0003013,7]
[422320662,1778819456000,-223.723344,0.0003013,7]
[422320659,1778819456000,-464.959914,0.0003013,7]
[422320658,1778819456000,-464.959914,0.0003013,7]
[422320663,1778819456000,-223.723344,0.0003013,7]
[422320666,1778819456000,-654.327165,0.0003013,7]
[422320665,1778819456000,-654.327165,0.0003013,7]
[422320667,1778819456000,-654.327165,0.0003013,7]
[422320668,1778819456000,-654.327165,0.0003013,7]
[422320672,1778819456000,-282.491738,0.0003013,7]
[422320669,1778819456000,-151.0,0.0003013,7]
[422320676,1778819456000,-151.0,0.0003013,7]
[422320670,1778819456000,-151.0,0.0003013,7]
[422320675,1778819456000,-282.491738,0.0003013,7]
[422320673,1778819456000,-151.0,0.0003013,7]
[422320671,1778819456000,-282.491738,0.0003013,7]
[422320677,1778819456000,-270.241083,0.0003013,7]
[422320679,1778819456000,-270.241083,0.0003013,7]
[422320713,1778819456000,-730.0,0.00030575,30]
[422320699,1778819456000,-150.0,0.00030137,2]
[422320708,1778819456000,-2082.0,0.00030522,30]
[422320743,1778819456000,-500.0,0.00031097,120]
[422320744,1778819456000,-190.919822,0.00031136,7]
[422320745,1778819456000,-190.919822,0.00031136,7]
[422320749,1778819456000,-200.0,0.00031152,2]
[422320748,1778819456000,-579.0,0.00031137,9]
[422320752,1778819456000,-217.15233878,0.00031152,2]
[422320747,1778819456000,-190.919822,0.00031136,7]
[422320746,1778819456000,-190.919822,0.00031136,7]
[422320751,1778819456000,-225.18697532,0.00031152,2]
[422320750,1778819456000,-924.60877284,0.00031152,2]
[422320755,1778819456000,-1847.41533141,0.0003119,2]
[422320760,1778819456000,-1000.0,0.00031203,2]
[422320756,1778819456000,-2900.42,0.000312,14]
[422320753,1778819456000,-1000.0,0.0003119,2]
[422320754,1778819456000,-1000.0,0.0003119,2]
[422320762,1778819456000,-509.9,0.00031271,2]
[422320761,1778819456000,-1000.0,0.00031203,2]
[422320759,1778819456000,-1000.0,0.00031203,2]
[422320758,1778819456000,-1000.0,0.00031203,2]
[422320763,1778819456000,-174.0,0.00031399,120]
[422320764,1778819456000,-1238.59,0.000314,7]
[422320765,1778819456000,-152.0,0.00031427,10]
[422320767,1778819456000,-2578.93,0.000315,7]
[422320771,1778819456000,-2082.0,0.00031522,30]
[422320770,1778819456000,-1000.0,0.000315,7]
[422320768,1778819456000,-200.46090113,0.000315,2]
[422320772,1778819456000,-196.0,0.00031522,30]
[422320710,1778819456000,-157.0,0.00030522,30]
[422320757,1778819456000,-1000.0,0.00031203,2]
[422320742,1778819456000,-200.0,0.00031096,2]
[422320769,1778819456000,-150.0,0.000315,2]
[422320735,1778819456000,-1223.0,0.00030918,2]
[422320734,1778819456000,-1270.0,0.00030918,2]
[422320709,1778819456000,-196.0,0.00030522,30]
[422320711,1778819456000,-1763.0,0.00030568,30]
[422320717,1778819456000,-194.72792766,0.00030602,2]
[422320727,1778819456000,-1612.0,0.00030604,30]
[422320716,1778819456000,-218.0,0.00030575,30]
[422320721,1778819456000,-891.61887448,0.00030604,2]
[422320720,1778819456000,-200.0,0.00030604,2]
[422320726,1778819456000,-321.0,0.00030604,30]
[422320719,1778819456000,-646.65982734,0.00030603,2]
[422320725,1778819456000,-152.0,0.00030604,30]
[422320724,1778819456000,-356.0,0.00030604,30]
[422320766,1778819456000,-1006.92,0.00031486,30]
[422320718,1778819456000,-599.60298507,0.00030603,2]
[422320712,1778819456000,-579.0,0.00030575,8]
[422320722,1778819456000,-217.15233878,0.00030604,2]
[422320732,1778819456000,-1006.92,0.0003068,30]
[422320731,1778819456000,-175.0,0.00030655,120]
[422320733,1778819456000,-272.26883424,0.000308,2]
[422320737,1778819456000,-625.0,0.00030918,2]
[422320723,1778819456000,-209.40437684,0.00030604,2]
[422320728,1778819456000,-1577.39433103,0.0003065,2]
[422320738,1778819456000,-1027.8338,0.00031,120]
[422320730,1778819456000,-1577.394331,0.0003065,2]
[422320741,1778819456000,-159.0,0.00031084,3]
[422320740,1778819456000,-150.0,0.00031081,2]
[422320739,1778819456000,-3553.30290195,0.0003105,30]
[422320729,1778819456000,-1577.394331,0.0003065,2]
[422320736,1778819456000,-3631.0,0.00030918,2]
[422320817,1778819457000,-1006.92,0.00032292,120]
[422320813,1778819457000,-242.15909246,0.00032248,2]
[422320811,1778819457000,-200.0,0.00032248,2]
[422320810,1778819457000,-366.95497307,0.00032222,30]
[422320805,1778819457000,-177.47449092,0.00032,120]
[422320812,1778819457000,-230.42643823,0.00032248,2]
[422320806,1778819457000,-214.997284,0.00032,30]
[422320803,1778819457000,-218.45641843,0.00032,120]
[422320808,1778819457000,-2338.45866313,0.00032112,2]
[422320807,1778819457000,-200.0,0.00032055,2]
[422320809,1778819457000,-1129.2,0.0003221,5]
[422320818,1778819457000,-908.44583239,0.000323,2]
[422320823,1778819457000,-152.0,0.00032438,11]
[422320820,1778819457000,-199.29,0.00032405,120]
[422320826,1778819457000,-157.0,0.00032522,30]
[422320816,1778819457000,-500.0,0.00032266,120]
[422320819,1778819457000,-2900.42,0.000324,14]
[422320827,1778819457000,-500.0,0.00032528,120]
[422320825,1778819457000,-196.0,0.00032522,30]
[422320822,1778819457000,-150.0,0.00032431,2]
[422320821,1778819457000,-150.0,0.00032431,2]
[422320824,1778819457000,-2082.0,0.00032522,30]
[422320829,1778819457000,-730.0,0.00032575,30]
[422320839,1778819457000,-200.0,0.00032796,2]
[422320828,1778819457000,-1763.0,0.00032568,30]
[422320814,1778819457000,-233.51889341,0.00032248,2]
[422320815,1778819457000,-579.0,0.0003226,10]
[422320804,1778819457000,-1760.2559293,0.00032,2]
[422320783,1778819457000,-1612.0,0.00031604,30]
[422320799,1778819457000,-1942.35610484,0.00032,120]
[422320777,1778819457000,-158.0,0.00031575,30]
[422320773,1778819457000,-157.0,0.00031522,30]
[422320774,1778819457000,-1763.0,0.00031568,30]
[422320776,1778819457000,-365.0,0.00031575,30]
[422320775,1778819457000,-730.0,0.00031575,30]
[422320778,1778819457000,-218.0,0.00031575,30]
[422320779,1778819457000,-1833.39,0.000316,7]
[422320781,1778819457000,-152.0,0.00031604,30]
[422320790,1778819457000,-225.18697532,0.000317,2]
[422320784,1778819457000,-179.48,0.00031658,4]
[422320789,1778819457000,-233.51889341,0.000317,2]
[422320780,1778819457000,-356.0,0.00031604,30]
[422320782,1778819457000,-321.0,0.00031604,30]
[422320788,1778819457000,-958.81929743,0.000317,2]
[422320785,1778819457000,-179.49,0.00031658,4]
[422320786,1778819457000,-579.0,0.00031699,9]
[422320787,1778819457000,-200.0,0.000317,2]
[422320792,1778819457000,-3937.72290195,0.00031963,30]
[422320802,1778819457000,-250.89488453,0.00032,120]
[422320798,1778819457000,-1408.75106509,0.00032,120]
[422320796,1778819457000,-181.24620259,0.00032,120]
[422320793,1778819457000,-201.93286099,0.00031971,2]
[422320801,1778819457000,-939.16737674,0.00032,120]
[422320795,1778819457000,-182.57637511,0.00032,120]
[422320791,1778819457000,-169.14,0.00031869,3]
[422320794,1778819457000,-1830.85597898,0.00032,120]
[422320800,1778819457000,-172.47882651,0.00032,120]
[422320797,1778819457000,-177.90037404,0.00032,120]
[422320832,1778819457000,-218.0,0.00032575,30]
[422320830,1778819457000,-365.0,0.00032575,30]
[422320833,1778819457000,-1833.39,0.000326,7]
[422320874,1778819457000,-150.0,0.00032877,30]
[422320867,1778819457000,-150.0,0.00032877,30]
[422320870,1778819457000,-150.0,0.00032877,30]
[422320866,1778819457000,-150.0,0.00032877,30]
[422320868,1778819457000,-150.0,0.00032877,30]
[422320873,1778819457000,-150.0,0.00032877,30]
[422320872,1778819457000,-150.0,0.00032877,30]
[422320871,1778819457000,-150.0,0.00032877,30]
[422320876,1778819457000,-150.0,0.00032877,30]
[422320886,1778819457000,-500.0,0.00032877,2]
[422320878,1778819457000,-150.0,0.00032877,30]
[422320877,1778819457000,-150.0,0.00032877,30]
[422320875,1778819457000,-150.0,0.00032877,30]
[422320884,1778819457000,-500.0,0.00032877,30]
[422320880,1778819457000,-150.0,0.00032877,30]
[422320885,1778819457000,-518.0,0.00032877,30]
[422320879,1778819457000,-150.0,0.00032877,30]
[422320883,1778819457000,-500.0,0.00032877,30]
[422320882,1778819457000,-500.0,0.00032877,30]
[422320881,1778819457000,-271.0,0.00032877,30]
[422320888,1778819457000,-500.0,0.00032877,2]
[422320890,1778819457000,-500.0,0.00032877,2]
[422320892,1778819457000,-414.54634519,0.00032877,2]
[422320891,1778819457000,-500.0,0.00032877,2]
[422320893,1778819457000,-1087.45902807,0.00032877,60]
[422320889,1778819457000,-500.0,0.00032877,2]
[422320835,1778819457000,-152.0,0.00032604,30]
[422320869,1778819457000,-150.0,0.00032877,30]
[422320865,1778819457000,-150.0,0.00032877,30]
[422320887,1778819457000,-500.0,0.00032877,2]
[422320857,1778819457000,-151.0,0.00032877,7]
[422320831,1778819457000,-158.0,0.00032575,30]
[422320864,1778819457000,-150.0,0.00032877,30]
[422320834,1778819457000,-356.0,0.00032604,30]
[422320837,1778819457000,-1612.0,0.00032604,30]
[422320838,1778819457000,-150.0,0.00032636,2]
[422320836,1778819457000,-321.0,0.00032604,30]
[422320841,1778819457000,-242.15909246,0.00032796,2]
[422320840,1778819457000,-251.11897888,0.00032796,2]
[422320842,1778819457000,-4909.25193428,0.000328,2]
[422320843,1778819457000,-579.0,0.00032822,10]
[422320847,1778819457000,-300.0,0.0003287,120]
[422320846,1778819457000,-250.0,0.00032836,7]
[422320844,1778819457000,-500.0,0.00032835,2]
[422320845,1778819457000,-250.0,0.00032836,7]
[422320851,1778819457000,-419.0,0.00032877,2]
[422320859,1778819457000,-151.0,0.00032877,7]
[422320848,1778819457000,-404.27243303,0.0003287,120]
[422320850,1778819457000,-1002.05,0.00032877,2]
[422320852,1778819457000,-280.0,0.00032877,2]
[422320858,1778819457000,-151.0,0.00032877,7]
[422320853,1778819457000,-349.99,0.00032877,2]
[422320860,1778819457000,-151.0,0.00032877,7]
[422320854,1778819457000,-548.76,0.00032877,2]
[422320856,1778819457000,-151.0,0.00032877,7]
[422320861,1778819457000,-342.0,0.00032877,120]
[422320863,1778819457000,-150.0,0.00032877,30]
[422320849,1778819457000,-5000.0,0.00032876,120]
[422320862,1778819457000,-150.0,0.00032877,30]
[422320855,1778819457000,-151.0,0.00032877,7]
[422320930,1778819458000,-260.4103811,0.00033344,2]
[422320936,1778819458000,-490.0,0.00033383,2]
[422320938,1778819458000,-579.0,0.00033384,11]
[422320940,1778819458000,-500.0,0.00033435,120]
[422320937,1778819458000,-428.0,0.00033383,2]
[422320935,1778819458000,-1266.0,0.00033383,2]
[422320929,1778819458000,-200.0,0.00033344,2]
[422320931,1778819458000,-251.11897888,0.00033344,2]
[422320933,1778819458000,-2483.89072085,0.00033374,2]
[422320932,1778819458000,-2483.89072085,0.00033351,2]
[422320934,1778819458000,-1448.14844559,0.00033383,2]
[422320941,1778819458000,-152.0,0.00033449,12]
[422320927,1778819458000,-621.78829552,0.00033342,2]
[422320943,1778819458000,-18417.4132325,0.00033462,2]
[422320952,1778819458000,-157.0,0.00033522,30]
[422320951,1778819458000,-196.0,0.00033522,30]
[422320939,1778819458000,-5000.0,0.00033424,120]
[422320964,1778819458000,-1612.0,0.00033604,30]
[422320947,1778819458000,-19136.5,0.000335,2]
[422320946,1778819458000,-4871.9133623,0.00033462,2]
[422320949,1778819458000,-1000.0,0.00033522,30]
[422320944,1778819458000,-3892.2312472,0.00033462,2]
[422320945,1778819458000,-3262.49516,0.00033462,2]
[422320948,1778819458000,-2483.89072085,0.00033522,2]
[422320953,1778819458000,-660.05,0.00033529,2]
[422320963,1778819458000,-321.0,0.00033604,30]
[422320956,1778819458000,-1763.0,0.00033568,30]
[422320955,1778819458000,-2483.89072085,0.00033544,2]
[422320928,1778819458000,-670.58624095,0.00033342,2]
[422320942,1778819458000,-364.5950643,0.00033462,2]
[422320914,1778819458000,-477.59411947,0.00033,30]
[422320896,1778819458000,-290.13,0.000329,120]
[422320925,1778819458000,-2483.89072085,0.00033319,2]
[422320894,1778819458000,-4003.23713691,0.00032877,30]
[422320895,1778819458000,-547.0,0.00032887,2]
[422320897,1778819458000,-2578.93,0.000329,30]
[422320898,1778819458000,-12946.19767073,0.000329,120]
[422320899,1778819458000,-152.69857013,0.000329,120]
[422320910,1778819458000,-601.02425971,0.00033,7]
[422320912,1778819458000,-175.91106121,0.00033,60]
[422320911,1778819458000,-37974.02099631,0.00033,3]
[422320901,1778819458000,-180.3267617,0.00032984,30]
[422320900,1778819458000,-2824.69477737,0.00032984,7]
[422320906,1778819458000,-939.16737674,0.00033,120]
[422320903,1778819458000,-1830.85597898,0.00033,120]
[422320902,1778819458000,-2483.89072085,0.00032994,2]
[422320908,1778819458000,-46626.10418927,0.00033,5]
[422320909,1778819458000,-52153.78750436,0.00033,2]
[422320907,1778819458000,-571.463836,0.00033,14]
[422320904,1778819458000,-1408.75106509,0.00033,120]
[422320905,1778819458000,-1942.35610484,0.00033,120]
[422320913,1778819458000,-5835.35826892,0.00033,30]
[422320915,1778819458000,-449.41,0.00033014,5]
[422320924,1778819458000,-2900.42,0.000333,14]
[422320926,1778819458000,-209.40437684,0.0003334,2]
[422320916,1778819458000,-1006.92,0.0003302,120]
[422320922,1778819458000,-200.0,0.00033231,10]
[422320920,1778819458000,-2483.89072085,0.00033185,2]
[422320917,1778819458000,-2483.89072085,0.00033083,2]
[422320919,1778819458000,-2483.89072085,0.00033168,2]
[422320923,1778819458000,-2483.89072085,0.00033243,2]
[422320921,1778819458000,-1128.32718608,0.00033198,30]
[422320918,1778819458000,-2483.89072085,0.00033129,2]
[422320954,1778819458000,-163.32,0.00033529,2]
[422320950,1778819458000,-2082.0,0.00033522,30]
[422320957,1778819458000,-730.0,0.00033575,30]
[422320996,1778819458000,-208.0,0.00034247,2]
[422320994,1778819458000,-208.0,0.00034247,2]
[422321006,1778819458000,-2483.89072085,0.00034488,2]
[422321001,1778819458000,-200.0,0.0003444,2]
[422321004,1778819458000,-26779.0,0.00034468,2]
[422320999,1778819458000,-400.0,0.000344,120]
[422320997,1778819458000,-150.0,0.00034267,2]
[422321005,1778819458000,-151.0,0.00034485,14]
[422321002,1778819458000,-270.0455652,0.0003444,2]
[422321000,1778819458000,-168.0,0.00034423,2]
[422320998,1778819458000,-2483.89072085,0.00034393,2]
[422321003,1778819458000,-152.0,0.00034459,13]
[422321018,1778819458000,-730.0,0.00034575,30]
[422321009,1778819458000,-178.11,0.00034521,120]
[422320995,1778819458000,-150.0,0.00034247,2]
[422321011,1778819458000,-196.0,0.00034522,30]
[422321019,1778819458000,-365.0,0.00034575,30]
[422321010,1778819458000,-2082.0,0.00034522,30]
[422321013,1778819458000,-397.0,0.00034528,2]
[422321012,1778819458000,-157.0,0.00034522,30]
[422321014,1778819458000,-355.73,0.00034544,60]
[422321017,1778819458000,-1763.0,0.00034568,30]
[422321015,1778819458000,-500.0,0.0003455,120]
[422321016,1778819458000,-1471.0978336,0.00034551,2]
[422321020,1778819458000,-158.0,0.00034575,30]
[422321022,1778819458000,-10526.95,0.00034583,98]
[422321023,1778819458000,-397.0,0.0003459,2]
[422321024,1778819458000,-356.0,0.00034604,30]
[422321021,1778819458000,-218.0,0.00034575,30]
[422320965,1778819458000,-2483.89072085,0.0003364,2]
[422321007,1778819458000,-579.0,0.00034507,12]
[422320993,1778819458000,-398.0,0.00034247,2]
[422321008,1778819458000,-5000.0,0.0003452,120]
[422320983,1778819458000,-2483.89072085,0.00033936,2]
[422320992,1778819458000,-250.0,0.00034247,2]
[422320958,1778819458000,-365.0,0.00033575,30]
[422320962,1778819458000,-152.0,0.00033604,30]
[422320959,1778819458000,-158.0,0.00033575,30]
[422320960,1778819458000,-218.0,0.00033575,30]
[422320967,1778819458000,-2483.89072085,0.00033785,2]
[422320978,1778819458000,-1833.39,0.000339,30]
[422320968,1778819458000,-2483.89072085,0.00033791,2]
[422320977,1778819458000,-939.16737674,0.000339,120]
[422320966,1778819458000,-159.0,0.00033773,3]
[422320979,1778819458000,-2483.89072085,0.00033911,2]
[422320969,1778819458000,-1006.92,0.00033826,120]
[422320972,1778819458000,-316.74267941,0.00033892,2]
[422320974,1778819458000,-1830.85597898,0.000339,120]
[422320971,1778819458000,-200.0,0.00033892,2]
[422320961,1778819458000,-356.0,0.00033604,30]
[422320973,1778819458000,-260.4103811,0.00033892,2]
[422320970,1778819458000,-2483.89072085,0.00033882,2]
[422320990,1778819458000,-288.0,0.00034247,2]
[422320982,1778819458000,-625.0,0.00033918,2]
[422320988,1778819458000,-2900.42,0.000342,14]
[422320989,1778819458000,-150.0,0.00034247,2]
[422320991,1778819458000,-229.0,0.00034247,2]
[422320985,1778819458000,-5000.0,0.00033972,120]
[422320987,1778819458000,-1129.2,0.00034182,7]
[422320986,1778819458000,-2483.89072085,0.00034128,2]
[422320980,1778819458000,-1223.0,0.00033918,2]
[422320981,1778819458000,-3631.0,0.00033918,2]
[422320975,1778819458000,-1408.75106509,0.000339,120]
[422320976,1778819458000,-1942.35610484,0.000339,120]
[422320984,1778819458000,-579.0,0.00033945,11]
[422321063,1778819459000,-398.0,0.00034917,2]
[422321064,1778819459000,-151.01808,0.0003492,60]
[422321069,1778819459000,-394.0,0.00034945,2]
[422321070,1778819459000,-1000.0,0.0003496,30]
[422321055,1778819459000,-243.67218084,0.00034865,30]
[422321068,1778819459000,-397.0,0.00034937,2]
[422321067,1778819459000,-151.01809,0.0003492,60]
[422321065,1778819459000,-151.01809,0.0003492,60]
[422321074,1778819459000,-397.0,0.00034978,2]
[422321072,1778819459000,-397.0,0.00034969,2]
[422321073,1778819459000,-397.0,0.00034972,2]
[422321062,1778819459000,-397.0,0.00034906,2]
[422321071,1778819459000,-397.0,0.00034968,2]
[422321061,1778819459000,-500.0,0.000349,120]
[422321066,1778819459000,-151.01809,0.0003492,60]
[422321083,1778819459000,-1830.85597898,0.00035,120]
[422321077,1778819459000,-200.0,0.00034988,2]
[422321078,1778819459000,-280.03725112,0.00034988,2]
[422321079,1778819459000,-397.0,0.00034994,2]
[422321076,1778819459000,-2483.89072085,0.00034982,2]
[422321087,1778819459000,-1833.39,0.00035,30]
[422321080,1778819459000,-397.0,0.00034994,2]
[422321086,1778819459000,-939.16737674,0.00035,120]
[422321084,1778819459000,-1408.75106509,0.00035,120]
[422321081,1778819459000,-398.0,0.00034997,2]
[422321082,1778819459000,-2483.89072085,0.00034998,2]
[422321085,1778819459000,-1942.35610484,0.00035,120]
[422321101,1778819459000,-397.0,0.00035051,2]
[422321093,1778819459000,-497.5589897,0.00035026,3]
[422321054,1778819459000,-243.67218085,0.00034865,7]
[422321075,1778819459000,-397.0,0.00034979,2]
[422321051,1778819459000,-166.88822591,0.00034848,90]
[422321025,1778819459000,-152.0,0.00034604,30]
[422321060,1778819459000,-397.0,0.00034887,2]
[422321099,1778819459000,-397.0,0.00035049,2]
[422321029,1778819459000,-1006.92,0.00034632,120]
[422321026,1778819459000,-321.0,0.00034604,30]
[422321027,1778819459000,-1612.0,0.00034604,30]
[422321030,1778819459000,-2483.89072085,0.00034643,2]
[422321031,1778819459000,-397.0,0.00034663,2]
[422321028,1778819459000,-398.0,0.0003463,2]
[422321032,1778819459000,-398.0,0.00034674,2]
[422321034,1778819459000,-255.63912557,0.00034709,2]
[422321038,1778819459000,-397.0,0.00034751,2]
[422321039,1778819459000,-397.0,0.00034756,2]
[422321044,1778819459000,-36022.0,0.00034773,30]
[422321046,1778819459000,-1500.0,0.00034795,2]
[422321035,1778819459000,-398.0,0.00034729,2]
[422321045,1778819459000,-2483.89072085,0.00034794,2]
[422321036,1778819459000,-397.0,0.00034731,2]
[422321033,1778819459000,-397.0,0.00034676,2]
[422321050,1778819459000,-397.0,0.00034837,2]
[422321052,1778819459000,-195.00828324,0.00034848,90]
[422321053,1778819459000,-397.0,0.00034851,2]
[422321056,1778819459000,-397.0,0.00034866,2]
[422321047,1778819459000,-178.09,0.000348,120]
[422321059,1778819459000,-397.0,0.00034885,2]
[422321057,1778819459000,-398.0,0.0003488,2]
[422321049,1778819459000,-398.0,0.00034836,2]
[422321048,1778819459000,-529.67441483,0.00034825,2]
[422321040,1778819459000,-397.0,0.00034756,2]
[422321043,1778819459000,-2483.89072085,0.00034773,2]
[422321037,1778819459000,-397.0,0.00034735,2]
[422321041,1778819459000,-2483.89072085,0.00034757,2]
[422321042,1778819459000,-397.0,0.00034765,2]
[422321058,1778819459000,-397.0,0.0003488,2]
[422321097,1778819459000,-397.0,0.00035046,2]
[422321098,1778819459000,-398.0,0.00035048,2]
[422321092,1778819459000,-398.0,0.00035021,2]
[422321125,1778819459000,-398.0,0.00035113,2]
[422321130,1778819459000,-398.0,0.00035153,2]
[422321135,1778819459000,-398.0,0.00035179,2]
[422321140,1778819459000,-397.0,0.00035198,2]
[422321138,1778819459000,-398.0,0.00035197,2]
[422321132,1778819459000,-398.0,0.00035159,2]
[422321131,1778819459000,-157.19667632,0.00035154,2]
[422321134,1778819459000,-398.0,0.00035177,2]
[422321142,1778819459000,-1500.0,0.000352,7]
[422321136,1778819459000,-398.0,0.00035179,2]
[422321133,1778819459000,-398.0,0.0003517,2]
[422321139,1778819459000,-397.0,0.00035197,2]
[422321137,1778819459000,-397.0,0.00035191,2]
[422321141,1778819459000,-2578.93,0.000352,30]
[422321143,1778819459000,-193.725,0.000352,32]
[422321155,1778819459000,-397.0,0.00035259,2]
[422321145,1778819459000,-398.0,0.00035203,2]
[422321159,1778819459000,-397.0,0.00035268,2]
[422321157,1778819459000,-397.0,0.00035265,2]
[422321158,1778819459000,-397.0,0.00035268,2]
[422321153,1778819459000,-397.0,0.00035253,2]
[422321089,1778819459000,-398.0,0.00035002,2]
[422321152,1778819459000,-397.0,0.00035244,2]
[422321126,1778819459000,-398.0,0.00035115,2]
[422321146,1778819459000,-398.0,0.00035209,2]
[422321150,1778819459000,-398.0,0.00035238,2]
[422321149,1778819459000,-398.0,0.00035218,2]
[422321147,1778819459000,-398.0,0.00035209,2]
[422321151,1778819459000,-397.0,0.00035241,2]
[422321144,1778819459000,-202.953229,0.000352,11]
[422321156,1778819459000,-71135.71257932,0.00035262,2]
[422321154,1778819459000,-397.0,0.00035254,2]
[422321122,1778819459000,-398.0,0.00035087,2]
[422321148,1778819459000,-397.0,0.00035211,2]
[422321119,1778819459000,-398.0,0.00035075,2]
[422321116,1778819459000,-961.7225395,0.00035073,60]
[422321094,1778819459000,-497.55898969,0.00035026,3]
[422321088,1778819459000,-150.42059682,0.00035,2]
[422321090,1778819459000,-394.0,0.00035012,2]
[422321096,1778819459000,-350.0,0.00035039,5]
[422321095,1778819459000,-377.0,0.00035032,2]
[422321091,1778819459000,-397.0,0.00035019,2]
[422321102,1778819459000,-398.0,0.00035055,2]
[422321104,1778819459000,-579.0,0.00035068,13]
[422321103,1778819459000,-5000.0,0.00035068,120]
[422321106,1778819459000,-398.0,0.0003507,2]
[422321105,1778819459000,-397.0,0.00035069,2]
[422321113,1778819459000,-500.0,0.00035073,60]
[422321111,1778819459000,-322.1642356,0.00035073,60]
[422321108,1778819459000,-500.0,0.00035073,60]
[422321100,1778819459000,-397.0,0.00035049,2]
[422321107,1778819459000,-398.0,0.00035073,2]
[422321123,1778819459000,-398.0,0.00035088,2]
[422321109,1778819459000,-500.0,0.00035073,60]
[422321120,1778819459000,-398.0,0.00035076,2]
[422321129,1778819459000,-398.0,0.00035137,2]
[422321118,1778819459000,-428.6420915,0.00035073,60]
[422321127,1778819459000,-398.0,0.00035119,2]
[422321124,1778819459000,-2900.42,0.000351,14]
[422321117,1778819459000,-166.3242039,0.00035073,60]
[422321128,1778819459000,-300.57,0.0003513,37]
[422321110,1778819459000,-606.8258946,0.00035073,60]
[422321112,1778819459000,-512.9091593,0.00035073,60]
[422321114,1778819459000,-725.0974236,0.00035073,60]
[422321115,1778819459000,-500.0,0.00035073,60]
[422321121,1778819459000,-397.0,0.00035084,2]
[422321200,1778819460000,-500.0,0.00035616,120]
[422321202,1778819460000,-500.0,0.00035616,120]
[422321198,1778819460000,-321.0,0.00035604,30]
[422321201,1778819460000,-500.0,0.00035616,120]
[422321196,1778819460000,-356.0,0.00035604,30]
[422321194,1778819460000,-163.0,0.0003559,11]
[422321195,1778819460000,-1834.83822948,0.000356,2]
[422321191,1778819460000,-365.0,0.00035575,30]
[422321203,1778819460000,-500.0,0.00035616,120]
[422321186,1778819460000,-290.39862941,0.00035536,2]